[Event "Baku Open 2024"]
[Site "Baku"]
[Date "2024.07.07"]
[Round "9.26"]
[White "Israilov, Agil"]
[Black "Mohamed Anees M"]
[Result "1/2-1/2"]
[ECO "A04"]
[WhiteElo "2141"]
[BlackElo "2306"]
[Annotator "TA"]
[PlyCount "83"]
[EventDate "2024.06.29"]
[EventType "swiss"]
[EventCountry "AZE"]
[SourceTitle "playchess.com"]
[Source "ChessBase"]
[SourceQuality "1"]
[TimeControl "5400+30"]

{[%evp 13,83,-11,6,-30,-16,-33,-18,-45,-39,-48,-43,-58,-18,-30,-32,-33,-34,-56,-11,-20,-8,-68,0,-47,-18,-23,-32,-35,-28,-25,-34,-42,-28,-36,-25,-26,296,189,411,404,365,398,406,405,409,373,354,323,320,284,351,344,360,329,556,541,492,300,313,314,1081,387,435,433,427,440,411,415,525,425,389,339]} 1. e4 {[%emt 0:00:04]} c5 {[%emt 0:00:18]} 2. Nf3 {[%emt 0:00:04]} e6 {[%emt 0:00:07]} 3. d3 {[%emt 0:00:03]} Nc6 {[%emt 0:00:50]} 4. g3 {[%emt 0:00:06]} g6 {[%emt 0:02:00]} 5. Bg2 {[%emt 0:04:48]} Bg7 {[%emt 0:00:09]} 6. O-O {[%emt 0:00:21]} Nge7 {[%emt 0:01:31]} 7. Nbd2 {[%emt 0:00:30]} O-O {[%emt 0:00:39]} 8. Qe2 {[%emt 0:00:18]} d6 {[%emt 0:00:47]} 9. Re1 {[%emt 0:00:26]} Rb8 {[%emt 0:02:46]} 10. h4 {[%emt 0:00:17] The position is equal.} e5 {[%emt 0:03:57]} 11. Nf1 {[%emt 0:02:26][%cal Oh4h5]} h6 {[%emt 0:02:05]} 12. Be3 {[%emt 0:02:31]} Nd4 {[%emt 0:04:50]} 13. Nxd4 {[%emt 0:00:57]} cxd4 {[%emt 0:00:25]} 14. Bd2 {[%emt 0:00:39]} Be6 {[%emt 0:04:31]} 15. Nh2 {[%emt 0:00:58]} f5 {[%emt 0:06:44]} 16. exf5 {[%emt 0:13:54]} Nxf5 {[%emt 0:12:36]} 17. Nf1 {[%emt 0:02:34]} (17. c4 $11) 17... Qb6 {[%emt 0:05:15]} ({Better is} 17... b5 $15) 18. b3 {[%emt 0:00:11]} (18. c4 $11) 18... Rbc8 {[%emt 0:50:00]} 19. Rac1 {[%emt 0:06:12]} Rc7 {[%emt 0:00:00]} 20. c4 {[%emt 0:04:07]} dxc3 {[%emt 0:00:00]} 21. Bxc3 {[%emt 0:00:07][%cal Bd2c3,Bc3b2,Bb2d4,Bd4e3][%mdl 32]} Rcf7 {[%emt 0:00:00]} 22. Rc2 {[%emt 0:01:58]} h5 {[%emt 0:00:00]} 23. Qe4 {[%emt 0:08:15]} Kh7 {[%emt 0:00:00]} 24. Bb2 {[%emt 0:22:47] [#]} Nxh4 $2 {[%emt 0:00:00][%mdl 8192] This costs Black the game.} 25. gxh4 {[%emt 0:01:00]} Rxf2 $2 {[%emt 0:00:00] [#]} (25... Bh6 26. Nh2 Bf4 (26... Rxf2 $2 27. Bd4 $18)) 26. Bd4 $1 $18 {[%emt 0:00:40][%mdl 512]} Rxf1+ {[%emt 0:00:00]} 27. Bxf1 {[%emt 0:00:09]} Qd8 {[%emt 0:00:00]} 28. Be3 {[%emt 0:06:03] Wards off Rf4} (28. Bxa7 Rf4 $18) 28... d5 {[%emt 0:00:00]} 29. Qg2 {[%emt 0:01:31]} Qxh4 {[%emt 0:00:00]} 30. Bf2 {[%emt 0:01:56]} Qd8 {[%emt 0:00:00]} 31. Bg3 {[%emt 0:01:17]} (31. Bxa7 Rf4 32. Be2 b6 $14) 31... Rf5 {[%emt 0:00:00]} 32. Qh2 {[%emt 0:01:26]} e4 {[%emt 0:00:51]} 33. Bh3 {[%emt 0:03:31]} Rf3 {[%emt 0:02:32]} (33... Rg5 {was worth a try.}) 34. Bxe6 {[%emt 0:02:15]} Qb6+ {[%emt 0:00:04]} 35. Kh1 {[%emt 0:01:20]} Qxe6 {[%emt 0:00:07]} 36. dxe4 {[%emt 0:03:05]} Be5 $2 {[%emt 0:00:20]} (36... Bc3 37. Rg1 dxe4) 37. Rg1 $2 {[%emt 0:03:18]} (37. Bxe5 Rh3 38. Rc7+ Kg8 39. Rg7+ Kf8 40. Rf1+ Ke8 41. Rg8+ Ke7 42. Bf6+ (42. Rg7+ Ke8 $16) 42... Kd7 43. Rd8+ (43. Rxg6 Qxe4+ 44. Rg2 Qd3 $18) 43... Kc6 44. Rd6+ (44. exd5+ Qxd5+ 45. Rxd5 Rxh2+ 46. Kxh2 Kxd5 $18) 44... Qxd6 45. Qxh3) 37... Bxg3 {[%emt 0:01:29]} 38. Rxg3 {[%emt 0:00:22]} Rf1+ {[%emt 0:00:45]} 39. Kg2 {[%emt 0:00:07]} Rf4 {[%emt 0:00:06]} 40. Re2 {[%emt 0:01:44]} Qa6 {[%emt 0:01:34]} 41. Rge3 {[%emt 0:01:47]} Rg4+ {[%emt 0:00:06]} 42. Kh1 {[%emt 0:00:23][%mdl 32768] Weighted Error Value: White=0.42/Black=0.54.  Loses game:     	---       	Black=1      Mistake:       	White=3     	Black=4      Inaccurate:     	White=3     	Black=3      OK:         	White=11    	Black=14     Best:        	White=1     	---        Brilliant:      	White=1     	---       . An unexpected result.} 1/2-1/2

[Event "Baku Open 2024"]
[Site "Baku"]
[Date "2024.07.07"]
[Round "9.27"]
[White "Tsaruk, Maksim"]
[Black "Ahmadov, Fariz"]
[Result "1-0"]
[ECO "B01"]
[WhiteElo "2480"]
[BlackElo "2178"]
[Annotator "TA"]
[PlyCount "95"]
[EventDate "2024.06.29"]
[EventType "swiss"]
[EventCountry "AZE"]
[SourceTitle "playchess.com"]
[Source "ChessBase"]
[SourceQuality "1"]
[TimeControl "5400+30"]

{[%evp 14,95,51,43,54,54,78,79,54,59,64,75,60,75,61,56,63,64,56,61,56,41,40,40,37,26,33,31,27,23,41,22,27,27,41,44,48,51,43,55,79,92,103,87,94,94,88,94,92,70,296,254,765,764,1485,1382,597,1050,5516,5516,6079,5509,5508,5501,5493,5485,5461,5401,5165,5116,1219,5069,1055,1048,616,494,5106,5102,29990,29991,29995,0,253,9]} 1. e4 {[%emt 0:00:04]} d5 {[%emt 0:00:41]} 2. exd5 {[%emt 0:00:11]} Nf6 {[%emt 0:00:04]} 3. Nf3 {[%emt 0:00:21]} Nxd5 {[%emt 0:00:05]} 4. d4 {[%emt 0:00:31]} e6 {[%emt 0:00:12]} 5. c4 {[%emt 0:10:00]} Nf6 {[%emt 0:00:07]} 6. Nc3 {[%emt 0:00:05]} Be7 {[%emt 0:00:38]} 7. Be2 {[%emt 0:00:46]} O-O {[%emt 0:00:08]} 8. O-O {[%emt 0:00:04]} c5 {[%emt 0:00:48]} 9. dxc5 {[%emt 0:06:52]} Qxd1 {[%emt 0:00:20]} 10. Rxd1 {[%emt 0:00:06]} Bxc5 {[%emt 0:00:29] White is better.} 11. Ne5 {[%emt 0:03:20]} Nfd7 {[%emt 0:05:31]} 12. Nd3 {[%emt 0:05:40] White is much more active.} Be7 {[%emt 0:00:26]} 13. Be3 {[%emt 0:00:07]} Nc6 {[%emt 0:00:08]} 14. Rd2 {[%emt 0:00:17]} b6 {[%emt 0:04:00]} 15. Rad1 {[%emt 0:12:57]} Bb7 {[%emt 0:03:24]} 16. f4 {[%emt 0:01:34]} Rfd8 {[%emt 0:03:53]} 17. Bf3 {[%emt 0:03:55][%cal Od3b4] Hoping for Nb4!} Na5 {[%emt 0:01:34]} 18. Bxb7 {[%emt 0:00:10]} Nxb7 {[%emt 0:00:05]} 19. Nb5 {[%emt 0:00:34][%cal Od3b4]} Na5 {[%emt 0:03:23]} 20. b3 {[%emt 0:06:17][%cal Ob5a7]} Nc6 {[%emt 0:00:15]} 21. Nb4 {[%emt 0:13:49]} Nxb4 {[%emt 0:01:18]} 22. Rxd7 {[%emt 0:00:05]} Nxa2 {[%emt 0:00:35]} 23. Rxd8+ {[%emt 0:01:21]} Rxd8 {[%emt 0:00:10]} 24. Rxd8+ {[%emt 0:00:28]} Bxd8 {[%emt 0:00:07]} 25. Nxa7 $11 {[%emt 0:00:03][%mdl 4096] Endgame. KBN-KBN} Nc3 {[%emt 0:00:46]} 26. Kf1 {[%emt 0:04:37]} f6 {[%emt 0:01:31]} 27. Nc8 {[%emt 0:04:18]} b5 {[%emt 0:01:04]} 28. Bd4 {[%emt 0:00:18]} Ne4 {[%emt 0:01:28]} 29. cxb5 {[%emt 0:00:13]} Nd2+ {[%emt 0:00:04]} 30. Ke2 {[%emt 0:00:04]} Nxb3 {[%emt 0:00:05]} 31. Kd3 {[%emt 0:08:26] b6 is the strong threat.} Nxd4 $2 {[%emt 0:01:29]} (31... Kf7 $14) 32. Kxd4 $14 {[%emt 0:00:05] KB-KN} Bc7 $2 {[%emt 0:00:10]} (32... Kf7 33. b6 Ke8) 33. g3 $18 {[%emt 0:00:40]} e5+ {[%emt 0:01:44]} 34. fxe5 {[%emt 0:00:18]} Bxe5+ {[%emt 0:00:07]} 35. Kd5 {[%emt 0:00:04] [#] Black must now prevent b6.} Bb8 {[%emt 0:01:16]} 36. b6 {[%emt 0:00:05]} f5 {[%emt 0:02:00]} 37. Ne7+ {[%emt 0:00:47]} Kf7 {[%emt 0:00:01]} 38. Nc6 {[%emt 0:07:29]} f4 {[%emt 0:00:11]} 39. Nxb8 {[%emt 0:00:06] Intending b7 and mate. KN-K3P} f3 {[%emt 0:00:03]} 40. Nc6 {[%emt 0:00:04] b7 would kill now.} f2 {[%emt 0:00:14]} 41. b7 {[%emt 0:00:04]} f1=Q {[%emt 0:00:12]} 42. b8=Q {[%emt 0:14:15]} (42. b8=B $2 {too greedy.} Qh1+ 43. Kc5 Qxh2 $19) 42... Qg2+ {[%emt 0:00:30]} 43. Kd6 {[%emt 0:00:00]} Qd2+ {[%emt 0:00:04]} 44. Kc7 {[%emt 0:00:00] Threatening mate with Qb3+.} Qxh2 {[%emt 0:00:21] [#]} (44... Qd5 $142 45. Qb4 h6) 45. Qb3+ $1 {[%emt 0:00:00]} ({Less strong is} 45. Ne5+ Ke6 $18) 45... Kf6 {[%emt 0:00:10]} 46. Qf3+ {[%emt 0:00:00]} Kg6 {[%emt 1:11:39]} 47. Qb3 $2 {[%emt 0:02:30]} (47. Ne5+ {mates} Kh6 48. Qf4+ (48. Ng4+ Kg6 49. Nxh2 h5 50. Kd6 Kh6 51. Ke7 Kh7 52. Kf7 g6 53. Qf6 Kh6 54. Qxg6#) 48... g5 49. Qf6+ Kh5 50. Qf7+ Kh6 51. Ng4#) 47... Kg5 $2 {[%emt 0:00:30][%mdl 8192]} (47... Kf6 $1 $11 {and Black has nothing to worry.}) 48. Qe6 $2 {[%mdl 32768] Weighted Error Value: White=0.03 (flawless) /Black=0.55.  Loses game:     	---       	Black=1      Mistake:       	---       	Black=1      Inaccurate:     	---       	Black=2      OK:         	White=13    	Black=13     Best:        	White=5     	Black=2     . Loss on time!?} ({White has to play} 48. Qe3+ $18 Kg4 49. Ne5+ Kh3 50. g4+ Qg3 51. Qe4) 1-0

[Event "Baku Open 2024"]
[Site "Baku"]
[Date "2024.07.07"]
[Round "9.28"]
[White "Serikbay, Assel"]
[Black "Salimova, Nurgyul"]
[Result "1/2-1/2"]
[ECO "D60"]
[WhiteElo "2217"]
[BlackElo "2436"]
[Annotator "TA"]
[PlyCount "67"]
[EventDate "2024.06.29"]
[EventType "swiss"]
[EventCountry "AZE"]
[SourceTitle "playchess.com"]
[Source "ChessBase"]
[SourceQuality "1"]
[TimeControl "5400+30"]

{[%evp 19,67,22,28,13,31,23,27,0,0,0,0,0,0,0,21,19,89,95,94,101,95,71,152,145,148,95,192,99,108,106,100,104,95,50,83,79,80,62,80,82,80,0,0,0,0,0,0,0,0,0]} 1. d4 {[%emt 0:00:05]} Nf6 {[%emt 0:02:00]} 2. c4 {[%emt 0:00:09]} e6 {[%emt 0:00:06]} 3. Nf3 {[%emt 0:00:10]} d5 {[%emt 0:00:15]} 4. Nc3 {[%emt 0:00:11]} c6 {[%emt 0:01:12]} 5. Bg5 {[%emt 0:06:07]} Be7 {[%emt 0:01:25]} 6. e3 {[%emt 0:00:07]} Nbd7 {[%emt 0:01:12]} 7. Bd3 {[%emt 0:00:24]} O-O {[%emt 0:07:46]} 8. O-O {[%emt 0:00:20]} dxc4 {[%emt 0:01:47]} 9. Bxc4 {[%emt 0:00:07]} b5 {[%emt 0:00:14][%cal Bb7b5,Bb5b4][%mdl 32]} 10. Bd3 {[%emt 0:01:00]} Bb7 {[%emt 0:04:27]} 11. Qe2 {[%emt 0:04:13]} b4 {[%emt 0:03:32]} 12. Ne4 {[%emt 0:07:15]} c5 {[%emt 0:13:47]} 13. Nxf6+ {[%emt 0:09:42] White has an edge.} Bxf6 {[%emt 0:01:15]} 14. Bxf6 {[%emt 0:00:31]} Qxf6 {[%emt 0:06:55]} 15. Bb5 {[%emt 0:00:52]} Rfd8 {[%emt 0:03:07]} 16. Rfd1 {[%emt 0:28:51]} Qe7 {[%emt 0:14:57]} 17. Rac1 {[%emt 0:00:46]} cxd4 {[%emt 0:05:41]} (17... Rac8 $11) 18. Rc7 $1 $16 {[%emt 0:13:22]} Bxf3 {[%emt 0:14:40]} 19. Qxf3 {[%emt 0:00:07]} Rab8 {[%emt 0:02:32] [#]} 20. Ba4 {[%emt 0:16:11]} Kf8 {[%emt 0:05:35]} (20... b3 $142 21. axb3 (21. exd4 bxa2 22. Rxa7 Rxb2 $15) (21. Bxb3 Qd6 $16) 21... Kf8) 21. Qg3 {[%emt 0:00:34]} (21. Rxd4 $2 Ne5 22. Rxe7 Nxf3+ 23. gxf3 Kxe7 $19) 21... Rbc8 {[%emt 0:02:53]} 22. Rxa7 {[%emt 0:04:42] White has more active pieces.} (22. exd4 Rxc7 23. Qxc7 Nb6 $17) (22. Rxd4 $6 Nb6 23. Rxd8+ (23. Rxe7 $2 Rc1+) 23... Qxd8 24. Rxc8 (24. Rxa7 $2 Rc1+) 24... Qxc8 25. Qd6+ Kg8 $11) (22. Rb7 $142) 22... d3 {[%emt 0:03:08] [#]} 23. h3 {[%emt 0:00:32]} (23. Rxd3 $2 Rc1+ 24. Rd1 Rxd1+ 25. Bxd1 Nf6 $19) (23. Bb5 $1 $18) 23... Ra8 {[%emt 0:00:48]} 24. Rxa8 {[%emt 0:00:48]} Rxa8 {[%emt 0:00:00]} 25. Bxd7 {[%emt 0:01:50]} Qxd7 {[%emt 0:00:05][%mdl 4096] Endgame. KQR-KQR} 26. Qh4 {[%emt 0:00:18]} Qd6 {[%emt 0:02:38]} 27. Qxh7 {[%emt 0:01:16] Threatens to win with Qh8+.} Rxa2 {[%emt 0:00:02]} 28. Qh8+ {[%emt 0:01:06]} (28. Qxd3 Qxd3 29. Rxd3 Rxb2 $15) 28... Ke7 {[%emt 0:00:03]} 29. Qxg7 {[%emt 0:00:08]} d2 {[%emt 0:00:06]} 30. Qg5+ {[%emt 0:00:10]} (30. e4 $16 {aiming for Qg5+.} Qc5 31. Kh2 (31. Rxd2 $2 {perishes.} Qc1+ 32. Kh2 Qxd2 $19) 31... Qxf2 32. Qg5+ f6 33. Qxd2 (33. Rxd2 fxg5 34. Rxf2 Kd6 $14) 33... Qxd2 34. Rxd2) 30... Ke8 $11 {[%emt 0:01:03] The position is equal.} 31. Qg8+ {[%emt 0:02:21]} Ke7 {[%emt 0:00:01]} 32. Qg5+ {[%emt 0:00:42]} Ke8 {[%emt 0:00:04]} 33. Qg8+ {[%emt 0:01:14]} Ke7 {[%emt 0:00:04]} 34. Qg5+ {[%emt 0:00:21] Weighted Error Value: White=0.15 (very precise) /Black=0.21 (precise) .  Mistake:       	White=3     	Black=3      Inaccurate:     	White=2     	Black=1      OK:         	White=5     	Black=7      Best:        	White=3     	Black=5      Strong:       	White=1     	---} 1/2-1/2

[Event "Baku Open 2024"]
[Site "Baku"]
[Date "2024.07.07"]
[Round "9.29"]
[White "Galaktionov, Artem"]
[Black "Kairbekova, Amina"]
[Result "0-1"]
[ECO "E99"]
[WhiteElo "2358"]
[BlackElo "2244"]
[Annotator "TA"]
[PlyCount "84"]
[EventDate "2024.06.29"]
[EventType "swiss"]
[EventCountry "AZE"]
[SourceTitle "playchess.com"]
[Source "ChessBase"]
[SourceQuality "1"]
[TimeControl "5400+30"]

{[%evp 21,83,8,15,13,29,-6,9,3,21,18,38,25,29,-50,-29,-54,0,-72,-85,-91,-97,-107,-99,-110,-102,-113,-105,-91,-11,-84,-75,-176,-162,-206,-164,-216,-160,-184,-167,-254,-139,-131,-133,-130,-147,-140,-158,-164,-146,-294,-218,-209,-176,-156,-146,-133,-92,-29989,-29990,-29995,-29996,-29998,-29982,-29999]} 1. d4 {[%emt 0:00:59]} Nf6 {[%emt 0:00:06]} 2. c4 {[%emt 0:00:04]} g6 {[%emt 0:00:06]} 3. Nc3 {[%emt 0:00:04]} Bg7 {[%emt 0:00:05]} 4. e4 {[%emt 0:00:03]} d6 {[%emt 0:00:05]} 5. Nf3 {[%emt 0:00:04]} O-O {[%emt 0:00:06]} 6. Be2 {[%emt 0:00:01]} e5 {[%emt 0:00:24]} 7. O-O {[%emt 0:00:05]} Nc6 {[%emt 0:03:23]} 8. d5 {[%emt 0:00:34]} Ne7 {[%emt 0:00:07]} 9. Ne1 {[%emt 0:00:04]} Nd7 {[%emt 0:00:09]} 10. f3 {[%emt 0:00:04]} f5 {[%emt 0:00:21]} 11. g4 {[%emt 0:00:03]} f4 {[%emt 0:02:34]} 12. h4 {[%emt 0:00:23]} Bf6 {[%emt 0:01:57]} 13. Ng2 {[%emt 0:05:02]} Kh8 {[%emt 0:01:07]} 14. Bd2 {[%emt 0:01:20] The position is equal.} Ng8 {[%emt 0:00:33]} 15. Be1 {[%emt 0:00:03]} g5 {[%emt 0:00:24]} 16. h5 {[%emt 0:00:48]} Be7 {[%emt 0:00:06]} 17. Kh2 {[%emt 0:01:17]} (17. Bd2 $11) 17... Ndf6 {[%emt 0:03:00]} 18. Rh1 {[%emt 0:00:12]} Nh6 {[%emt 0:01:36]} 19. Kg1 {[%emt 0:00:48]} (19. Bf2 $11 {remains equal.}) 19... Bd7 $17 {[%emt 0:00:19]} 20. Bf2 {[%emt 0:03:21]} Qc8 {[%emt 0:00:43]} 21. Qd3 {[%emt 0:02:18] [#]} Nfxg4 $1 {[%emt 0:05:18][%mdl 512]} 22. fxg4 {[%emt 0:00:23]} Nxg4 {[%emt 0:00:05]} 23. Bxg4 {[%emt 0:00:23]} Bxg4 {[%emt 0:00:05]} 24. Kf1 {[%emt 0:03:46]} Qe8 {[%emt 0:08:55]} (24... a6 $17 25. Kg1 Bd7) 25. Nb5 {[%emt 0:19:09]} (25. Ke1 $1 $11) 25... Bd8 {[%emt 0:00:09][%mdl 1024] Black has strong compensation.} (25... Bxh5 $2 26. Nxc7 Qd7 27. Nxa8 $18) 26. h6 {[%emt 0:13:20]} (26. Ke1 $17 {is a better defense.}) 26... Bd7 $19 {[%emt 0:01:05]} 27. Kg1 {[%emt 0:08:37]} a6 {[%emt 0:01:25]} 28. Nc3 {[%emt 0:02:05]} (28. Na3 {might work better.}) 28... g4 {[%emt 0:05:19] Strongly threatening ...g3.} 29. Rf1 {[%emt 0:01:05]} Qg6 {[%emt 0:06:05]} 30. Nh4 {[%emt 0:11:41]} (30. Bh4 {keeps fighting.}) 30... Qg5 {[%emt 0:04:21]} (30... Qxh6 31. Nf5 Qg5 32. Qe2 $17 (32. Bh4 Qg6 $17)) (30... Bxh4 $19 31. Bxh4 g3 (31... Qxh6 32. Be7 $11)) 31. Nf5 {[%emt 0:10:21]} g3 {[%emt 0:02:10]} 32. Bxg3 {[%emt 0:00:17][%cal Od3f3]} Rg8 {[%emt 0:08:47]} (32... Bxf5 33. exf5 Rxf5 (33... Qxg3+ 34. Qxg3 fxg3 35. Ne4 $16) (33... fxg3 34. Ne4 $16) 34. Rh3) 33. Rf3 {[%emt 0:00:21]} Bf6 {[%emt 0:01:07]} (33... fxg3 34. Kg2 $15) (33... Bxf5 $6 34. exf5 Qg4 (34... fxg3 $2 35. Kg2 $18) 35. Kf1 $11) 34. Kf2 {[%emt 0:08:01][%cal Of2e2]} Rae8 {[%emt 0:05:49][%cal Od7f5] ...Bxf5! is the strong threat.} (34... fxg3+ 35. Rxg3 Qf4+ 36. Rf3 $11) 35. Rh3 {[%emt 0:02:29]} (35. Ke2 $17 Bxf5 (35... fxg3 36. Rxg3 Qf4 37. Rf1 $11) 36. exf5) 35... Qg4 {[%emt 0:10:10]} (35... fxg3+ 36. Rfxg3 Qc1 37. Rxg8+ Rxg8 38. Rg3) 36. Kg2 {[%emt 0:07:22]} Rg6 {[%emt 0:08:40]} (36... fxg3 37. c5 $17) 37. b3 {[%emt 0:01:17]} Reg8 {[%emt 0:00:32][%cal Og6g5]} ({Much worse is} 37... fxg3 $6 38. Rfxg3 Bxf5 (38... Qf4 $2 39. Ne2 $18) 39. exf5 $11 (39. Rxg4 $2 Bxg4 40. Kf2 Bg5 $19)) 38. Nd1 {[%emt 0:00:39]} fxg3 {[%emt 0:06:23]} 39. Nde3 $2 {[%emt 0:00:06][%mdl 8192] [#]} (39. Rh1 $17) 39... Qxh3+ $3 {[%emt 0:00:18][%mdl 512] Black mates.} 40. Kxh3 {[%emt 0:00:03]} (40. Kg1 Qh2+) 40... g2 $1 {[%emt 0:00:08]} (40... Rxh6+ $2 {too greedy.} 41. Kg2 Rh2+ 42. Kg1 $18) 41. Nxg2 {[%emt 0:01:05]} Rxh6+ {[%emt 0:00:05]} 42. Ngh4 {[%emt 0:00:05]} Rxh4# {[%emt 0:00:04] Weighted Error Value: White=0.45/Black=0.24 (precise) .  Loses game:     	White=1     	---        Mistake:       	White=7     	Black=2      Inaccurate:     	White=1     	Black=1      OK:         	White=7     	Black=11     Best:        	White=1     	---        Brilliant:      	---       	Black=1} 0-1

[Event "Baku Open 2024"]
[Site "Baku"]
[Date "2024.07.07"]
[Round "9.30"]
[White "Valiyev, Shahin"]
[Black "Hamidov, Allahverdi"]
[Result "1/2-1/2"]
[ECO "C18"]
[WhiteElo "2244"]
[BlackElo "2307"]
[Annotator "RC"]
[PlyCount "49"]
[EventDate "2024.06.29"]
[EventType "swiss"]
[EventCountry "AZE"]
[SourceTitle "playchess.com"]
[Source "ChessBase"]
[SourceQuality "1"]
[TimeControl "5400+30"]

1. e4 {[%emt 0:00:08]} e6 {[%emt 0:02:08]} 2. d4 {[%emt 0:00:06]} d5 {[%emt 0:00:04]} 3. Nc3 {[%emt 0:00:58]} Bb4 {[%emt 0:00:21]} 4. e5 {[%emt 0:00:06]} c5 {[%emt 0:00:02]} 5. a3 {[%emt 0:00:31]} Bxc3+ {[%emt 0:00:05]} 6. bxc3 {[%emt 0:00:05]} Ne7 {[%emt 0:00:08]} 7. Qg4 {[%emt 0:00:57]} cxd4 {[%emt 0:01:16]} 8. Qxg7 {[%emt 0:03:19]} Rg8 {[%emt 0:00:12]} 9. Qxh7 {[%emt 0:00:04]} Qc7 {[%emt 0:00:05]} 10. Ne2 {[%emt 0:00:47]} Nbc6 {[%emt 0:00:04]} 11. f4 {[%emt 0:00:14]} dxc3 {[%emt 0:00:05]} 12. Qd3 {[%emt 0:00:04]} d4 {[%emt 0:00:03]} 13. Nxd4 {[%emt 0:00:10]} Nxd4 {[%emt 0:00:06]} 14. Qxd4 {[%emt 0:00:04]} Bd7 {[%emt 0:00:05]} 15. Rg1 {[%emt 0:00:22]} Nf5 {[%emt 0:00:19]} 16. Qf2 {[%emt 0:00:05]} Qc6 {[%emt 0:00:03]} 17. Bd3 {[%emt 0:00:12]} Qd5 {[%emt 0:00:14]} 18. Be3 {[%emt 0:00:33]} Nxe3 {[%emt 0:00:13]} 19. Qxe3 {[%emt 0:00:09]} Rxg2 {[%emt 0:00:11]} 20. Rxg2 {[%emt 0:00:06]} Qxg2 {[%emt 0:00:04]} 21. Be4 {[%emt 0:00:05]} Qxh2 {[%emt 0:00:17]} 22. O-O-O {[%emt 0:00:09]} Bc6 {[%emt 0:00:10]} 23. Bxc6+ {[%emt 0:02:31]} bxc6 {[%emt 0:00:04]} 24. Qd4 {[%emt 0:00:06]} a5 {[%emt 0:00:25]} 25. Kb1 {[%emt 0:06:21]} 1/2-1/2

[Event "Baku Open 2024"]
[Site "Baku"]
[Date "2024.07.07"]
[Round "9.32"]
[White "Bizhigitov, Zhangir"]
[Black "Moosavifar, Seyed Abolfazl"]
[Result "1/2-1/2"]
[ECO "C81"]
[WhiteElo "2212"]
[BlackElo "2283"]
[Annotator "TA"]
[PlyCount "63"]
[EventDate "2024.06.29"]
[EventType "swiss"]
[EventCountry "AZE"]
[SourceTitle "playchess.com"]
[Source "ChessBase"]
[SourceQuality "1"]
[TimeControl "5400+30"]

{[%evp 21,63,27,28,0,0,-16,-18,-52,-43,-40,-29,-43,-29,-41,-37,-46,-37,-97,-73,-85,-44,-34,-30,-43,-27,-34,-32,-29,52,49,59,45,77,0,0,0,0,0,85,92,91,67,147,104]} 1. e4 {[%emt 0:00:23]} e5 {[%emt 0:00:01]} 2. Nf3 {[%emt 0:00:12]} Nc6 {[%emt 0:00:01]} 3. Bb5 {[%emt 0:00:34][%cal Bf1b5,Bb5a4,Ba4b3][%mdl 32]} a6 {[%emt 0:00:01]} 4. Ba4 {[%emt 0:00:12]} Nf6 {[%emt 0:00:02]} 5. O-O {[%emt 0:00:55]} Nxe4 {[%emt 0:00:06]} 6. d4 {[%emt 0:00:35]} b5 {[%emt 0:01:06]} 7. Bb3 {[%emt 0:00:08]} d5 {[%emt 0:00:01]} 8. dxe5 {[%emt 0:00:51]} Be6 {[%emt 0:00:02]} 9. Qe2 {[%emt 0:02:30]} Nc5 {[%emt 0:02:48]} 10. Rd1 {[%emt 0:03:53]} Nxb3 {[%emt 0:02:03]} 11. axb3 {[%emt 0:00:31]} Be7 {[%emt 0:01:45]} 12. Nc3 {[%emt 0:03:31][%cal Oc3d5]} O-O {[%emt 0:03:09]} 13. h3 {[%emt 0:08:58]} Nb4 {[%emt 0:03:11]} 14. Ne1 {[%emt 0:15:32] The position is equal.} c5 {[%emt 0:04:00]} 15. Ne4 {[%emt 0:07:24]} Qb6 {[%emt 0:05:53]} 16. Ng3 {[%emt 0:02:53]} d4 {[%emt 0:02:35]} 17. Nd3 {[%emt 0:04:21]} Nxd3 {[%emt 0:15:08]} 18. Qxd3 {[%emt 0:00:27]} f6 {[%emt 0:02:53]} 19. exf6 {[%emt 0:08:53]} (19. Nf5 $15 Bxf5 20. Qxf5) 19... Bxf6 $17 {[%emt 0:01:00]} (19... Rxf6 $6 20. Bg5 Rf7 21. Bxe7 Rxe7 22. b4 $11) 20. Nh5 {[%emt 0:00:39]} Bf7 {[%emt 0:00:42]} (20... Rae8 {looks sharper.} 21. Qg3 Bf5 22. c3 Bc2) 21. Nxf6+ {[%emt 0:04:54]} Qxf6 {[%emt 0:00:02]} 22. Qg3 {[%emt 0:00:41]} Qg6 {[%emt 0:12:16]} 23. Bf4 {[%emt 0:08:32][%cal Ob3b4]} Qxc2 {[%emt 0:05:32]} 24. b4 {[%emt 0:02:11] White is weak on the light squares} Bg6 {[%emt 0:10:01]} (24... cxb4 $11 25. Rxd4 Qxb2) 25. bxc5 $14 {[%emt 0:01:55]} d3 {[%emt 0:00:30]} 26. b4 {[%emt 0:04:46]} Qc4 {[%emt 0:03:29][%csl LRb4,LRf4] [#]} 27. Bd6 {[%emt 0:00:10]} ({White should play} 27. Bd2 $1 $16) 27... Rfe8 $11 {[%emt 0:00:52][%cal Bf8e8,Be8e4,Be4e6][%mdl 32]} 28. Qf4 {[%emt 0:05:56]} Re4 {[%emt 0:02:44]} 29. Qf3 {[%emt 0:00:05]} Rae8 {[%emt 0:00:21]} (29... Ree8 $11 {keeps the balance.}) 30. Rxd3 $16 {[%emt 0:02:18]} (30. Qxd3 $2 {loses.} Qxd3 (30... Qxb4 31. c6 $16) (30... Re1+ $2 31. Rxe1 Rxe1+ 32. Rxe1 $19) 31. Rxd3 Re1+ (31... Rxb4 32. Rda3 $18) 32. Kh2 Rxa1 $19) 30... R4e6 {[%emt 0:11:39]} 31. Re3 {[%emt 0:02:34]} Be4 {[%emt 0:01:21]} ({Better is} 31... Rxe3 $14 32. fxe3 Be4) 32. Qe2 {[%emt 0:07:18] Weighted Error Value: White=0.14 (very precise) /Black=0.22 (precise) .  Mistake:       	White=2     	Black=3      Inaccurate:     	White=1     	Black=2      OK:         	White=10    	Black=7      Best:        	White=1     	Black=1} 1/2-1/2